[Event "January 2 Early 2024"]
[Site "https://www.chess.com"]
[Date "2024.01.02"]
[Round "4"]
[White "SkinnyPuppy8"]
[Black "Garrido, Denis"]
[Result "0-1"]
[Board "199"]
[TimeControl "180+1"]
[BlackFideId "601217"]
[WhiteElo "2288"]
[BlackElo "2400"]
[BlackTeam "FRA"]
[WhiteClock "0:00:06"]
[BlackClock "0:00:11"]

1. e4 {[%clk 0:02:59]}  d6 {[%clk 0:02:57]} 2. d4 {[%clk 0:02:59]}  Nf6 {[%clk 0:02:57]} 3. Nc3 {[%clk 0:02:59]}  g6 {[%clk 0:02:57]} 4. Bg5 {[%clk 0:03:00]}  c6 {[%clk 0:02:57]} 5. Bxf6 {[%clk 0:02:59]}  exf6 {[%clk 0:02:56]} 6. Bc4 {[%clk 0:02:53]}  Qa5 {[%clk 0:02:51]} 7. a4 {[%clk 0:02:50]}  Bh6 {[%clk 0:02:48]} 8. Ne2 {[%clk 0:02:47]}  O-O {[%clk 0:02:45]} 9. O-O {[%clk 0:02:47]}  f5 {[%clk 0:02:44]} 10. Bd3 {[%clk 0:02:30]}  fxe4 {[%clk 0:02:40]} 11. Nxe4 {[%clk 0:02:26]}  d5 {[%clk 0:02:36]} 12. N4g3 {[%clk 0:02:11]}  Nd7 {[%clk 0:02:29]} 13. c3 {[%clk 0:02:10]}  Qb6 {[%clk 0:02:22]} 14. b4 {[%clk 0:02:06]}  a5 {[%clk 0:02:21]} 15. Rb1 {[%clk 0:02:05]}  axb4 {[%clk 0:02:20]} 16. Rxb4 {[%clk 0:02:04]}  Qc7 {[%clk 0:02:19]} 17. Qc2 {[%clk 0:01:56]}  Re8 {[%clk 0:02:10]} 18. f4 {[%clk 0:01:33]}  Nf8 {[%clk 0:02:07]} 19. f5 {[%clk 0:01:28]}  Ra7 {[%clk 0:01:41]} 20. c4 {[%clk 0:01:23]}  Qa5 {[%clk 0:01:28]} 21. Rfb1 {[%clk 0:01:15]}  Kg7 {[%clk 0:01:09]} 22. Kh1 {[%clk 0:01:06]}  dxc4 {[%clk 0:01:05]} 23. Qxc4 {[%clk 0:01:02]}  Re3 {[%clk 0:01:00]} 24. Ng1 {[%clk 0:00:58]}  Bf4 {[%clk 0:00:56]} 25. Nf3 {[%clk 0:00:57]}  Bd6 {[%clk 0:00:53]} 26. Ng5 {[%clk 0:00:41]}  Qd5 {[%clk 0:00:44]} 27. Qxd5 {[%clk 0:00:21]}  cxd5 {[%clk 0:00:44]} 28. R4b3 {[%clk 0:00:20]}  Rxa4 {[%clk 0:00:35]} 29. fxg6 {[%clk 0:00:15]}  hxg6 {[%clk 0:00:34]} 30. Nf3 {[%clk 0:00:15]}  Ne6 {[%clk 0:00:29]} 31. Bb5 {[%clk 0:00:14]}  Rxb3 {[%clk 0:00:25]} 32. Rxb3 {[%clk 0:00:15]}  Ra1+ {[%clk 0:00:24]} 33. Nf1 {[%clk 0:00:13]}  Nf4 {[%clk 0:00:20]} 34. g3 {[%clk 0:00:12]}  Bh3 {[%clk 0:00:19]} 35. gxf4 {[%clk 0:00:07]}  Bxf1 {[%clk 0:00:20]} 36. Bxf1 {[%clk 0:00:08]}  Rxf1+ {[%clk 0:00:20]} 37. Kg2 {[%clk 0:00:08]}  Rd1 {[%clk 0:00:20]} 38. Rxb7 {[%clk 0:00:08]}  Bxf4 {[%clk 0:00:20]} 39. Rd7 {[%clk 0:00:07]}  Kh6 {[%clk 0:00:18]} 40. Rxd5 {[%clk 0:00:08]}  f5 {[%clk 0:00:18]} 41. Rd7 {[%clk 0:00:07]}  Be3 {[%clk 0:00:18]} 42. d5 {[%clk 0:00:08]}  Bc5 {[%clk 0:00:18]} 43. Rd8 {[%clk 0:00:07]}  Kh5 {[%clk 0:00:17]} 44. Ne5 {[%clk 0:00:06]}  Kg5 {[%clk 0:00:15]} 45. Nf3+ {[%clk 0:00:06]}  Kf4 {[%clk 0:00:15]} 46. Rd7 {[%clk 0:00:05]}  g5 {[%clk 0:00:15]} 47. h3 {[%clk 0:00:02]}  Rd3 {[%clk 0:00:13]} 48. Ne1 {[%clk 0:00:02]}  Rd2+ {[%clk 0:00:13]} 49. Kh1 {[%clk 0:00:01]}  Rd1 {[%clk 0:00:12]} 50. Rc7 {[%clk 0:00:02]}  Rxe1+ {[%clk 0:00:12]} 51. Kg2 {[%clk 0:00:02]}  Bd6 {[%clk 0:00:12]} 52. Rc6 {[%clk 0:00:02]}  Ke5 {[%clk 0:00:12]} 53. Rc2 {[%clk 0:00:02]}  Kxd5 {[%clk 0:00:12]} 54. Kf2 {[%clk 0:00:03]}  Re4 {[%clk 0:00:11]} 55. Rd2+ {[%clk 0:00:03]}  Ke6 {[%clk 0:00:12]} 56. Rc2 {[%clk 0:00:04]}  Be5 {[%clk 0:00:12]} 57. Kf3 {[%clk 0:00:05]}  Rf4+ {[%clk 0:00:10]} 58. Kg2 {[%clk 0:00:05]}  Rd4 {[%clk 0:00:10]} 59. Rc6+ {[%clk 0:00:05]}  Rd6 {[%clk 0:00:11]} 60. Rc8 {[%clk 0:00:05]}  Rd2+ {[%clk 0:00:11]} 61. Kf3 {[%clk 0:00:05]}  Rd3+ {[%clk 0:00:11]} 62. Kg2 {[%clk 0:00:05]}  Kd5 {[%clk 0:00:12]} 63. h4 {[%clk 0:00:06]}  gxh4 {[%clk 0:00:11]} 64. Rd8+ {[%clk 0:00:06]}  Ke4 {[%clk 0:00:10]} 65. Re8 {[%clk 0:00:06]}  h3+ {[%clk 0:00:11]} 66. Kh1 {[%clk 0:00:06]}  Rd1# {[%clk 0:00:11]} 0-1

[Event "January 2 Early 2024"]
[Site "https://www.chess.com"]
[Date "2024.01.02"]
[Round "4"]
[White "Castillo Pena, Patricia Evarista"]
[Black "Munoz Sanchez, Miguel"]
[Result "0-1"]
[Board "204"]
[TimeControl "180+1"]
[WhiteFideId "6412106"]
[BlackFideId "3600734"]
[WhiteElo "1927"]
[BlackElo "2309"]
[WhiteTeam "DOM"]
[BlackTeam "ECU"]
[WhiteClock "0:00:17"]
[BlackClock "0:02:02"]

1. d4 {[%clk 0:03:00]}  Nf6 {[%clk 0:02:59]} 2. Nf3 {[%clk 0:02:59]}  g6 {[%clk 0:02:59]} 3. Nc3 {[%clk 0:02:59]}  Bg7 {[%clk 0:03:00]} 4. e4 {[%clk 0:02:59]}  d6 {[%clk 0:02:59]} 5. Bf4 {[%clk 0:02:59]}  O-O {[%clk 0:02:58]} 6. Qd2 {[%clk 0:02:59]}  c5 {[%clk 0:02:58]} 7. O-O-O {[%clk 0:02:56]}  cxd4 {[%clk 0:02:57]} 8. Qxd4 {[%clk 0:02:42]}  Nh5 {[%clk 0:02:46]} 9. Qd2 {[%clk 0:02:39]}  Nxf4 {[%clk 0:02:46]} 10. Qxf4 {[%clk 0:02:38]}  Nc6 {[%clk 0:02:47]} 11. e5 {[%clk 0:02:33]}  Qa5 {[%clk 0:02:45]} 12. exd6 {[%clk 0:02:29]}  exd6 {[%clk 0:02:43]} 13. Bc4 {[%clk 0:02:11]}  Ne5 {[%clk 0:02:22]} 14. Nxe5 {[%clk 0:02:06]}  dxe5 {[%clk 0:02:22]} 15. Qf3 {[%clk 0:02:00]}  Bf5 {[%clk 0:02:12]} 16. g4 {[%clk 0:01:56]}  Rac8 {[%clk 0:02:09]} 17. Bb3 {[%clk 0:01:48]}  e4 {[%clk 0:02:07]} 18. Qe2 {[%clk 0:01:45]}  Rxc3 {[%clk 0:02:05]} 19. bxc3 {[%clk 0:01:44]}  Bxc3 {[%clk 0:02:03]} 20. a4 {[%clk 0:00:17]}  Qb4 {[%clk 0:02:02]} 0-1

[Event "January 2 Early 2024"]
[Site "https://www.chess.com"]
[Date "2024.01.02"]
[Round "4"]
[White "Goltseva, Ekaterina"]
[Black "Bogumil, Tatiana"]
[Result "1-0"]
[Board "205"]
[TimeControl "180+1"]
[WhiteFideId "24173770"]
[BlackFideId "4110579"]
[WhiteElo "2611"]
[BlackElo "2003"]
[WhiteTeam "RUS"]
[BlackTeam "RUS"]
[WhiteClock "0:00:09"]
[BlackClock "0:00:00"]

1. Nf3 {[%clk 0:03:00]}  Nf6 {[%clk 0:02:57]} 2. c4 {[%clk 0:03:00]}  b6 {[%clk 0:02:54]} 3. g3 {[%clk 0:02:59]}  Bb7 {[%clk 0:02:54]} 4. Bg2 {[%clk 0:02:59]}  g6 {[%clk 0:02:54]} 5. O-O {[%clk 0:02:58]}  Bg7 {[%clk 0:02:54]} 6. Nc3 {[%clk 0:02:59]}  O-O {[%clk 0:02:54]} 7. d4 {[%clk 0:02:59]}  c5 {[%clk 0:02:54]} 8. d5 {[%clk 0:02:58]}  d6 {[%clk 0:02:54]} 9. e4 {[%clk 0:02:57]}  b5 {[%clk 0:02:54]} 10. cxb5 {[%clk 0:02:57]}  a6 {[%clk 0:02:55]} 11. Re1 {[%clk 0:02:52]}  axb5 {[%clk 0:02:52]} 12. Nxb5 {[%clk 0:02:53]}  Ba6 {[%clk 0:02:50]} 13. Nc3 {[%clk 0:02:47]}  Ng4 {[%clk 0:02:35]} 14. Qc2 {[%clk 0:02:35]}  Nd7 {[%clk 0:02:31]} 15. Bg5 {[%clk 0:02:24]}  Re8 {[%clk 0:02:24]} 16. a4 {[%clk 0:02:11]}  Qb6 {[%clk 0:02:15]} 17. Bf1 {[%clk 0:02:00]}  Nge5 {[%clk 0:02:03]} 18. Nd2 {[%clk 0:01:55]}  Bxf1 {[%clk 0:01:53]} 19. Rxf1 {[%clk 0:01:54]}  Qb4 {[%clk 0:01:20]} 20. Ra3 {[%clk 0:01:41]}  h6 {[%clk 0:01:06]} 21. Rb3 {[%clk 0:01:35]}  Qa5 {[%clk 0:01:02]} 22. Rb5 {[%clk 0:01:31]}  Qa6 {[%clk 0:00:56]} 23. Be3 {[%clk 0:01:31]}  Ng4 {[%clk 0:00:51]} 24. Nc4 {[%clk 0:01:20]}  Nxe3 {[%clk 0:00:47]} 25. Nxe3 {[%clk 0:01:21]}  Bxc3 {[%clk 0:00:33]} 26. Qxc3 {[%clk 0:01:15]}  Qxa4 {[%clk 0:00:33]} 27. Rb7 {[%clk 0:01:12]}  Ra7 {[%clk 0:00:24]} 28. b3 {[%clk 0:01:08]}  Qa6 {[%clk 0:00:22]} 29. Rxa7 {[%clk 0:01:07]}  Qxa7 {[%clk 0:00:23]} 30. Ra1 {[%clk 0:01:07]}  Qb7 {[%clk 0:00:20]} 31. Nc4 {[%clk 0:00:54]}  Ra8 {[%clk 0:00:12]} 32. Rxa8+ {[%clk 0:00:35]}  Qxa8 {[%clk 0:00:13]} 33. Kg2 {[%clk 0:00:27]}  f6 {[%clk 0:00:13]} 34. Qf3 {[%clk 0:00:26]}  h5 {[%clk 0:00:11]} 35. h4 {[%clk 0:00:21]}  Qa1 {[%clk 0:00:10]} 36. g4 {[%clk 0:00:19]}  hxg4 {[%clk 0:00:07]} 37. Qxg4 {[%clk 0:00:20]}  Nf8 {[%clk 0:00:07]} 38. h5 {[%clk 0:00:18]}  g5 {[%clk 0:00:06]} 39. Ne3 {[%clk 0:00:14]}  Qd4 {[%clk 0:00:03]} 40. Nf5 {[%clk 0:00:13]}  Qe5 {[%clk 0:00:03]} 41. Nh6+ {[%clk 0:00:10]}  Kh7 {[%clk 0:00:00]} 42. Nf5 {[%clk 0:00:09]} 1-0

[Event "January 2 Early 2024"]
[Site "https://www.chess.com"]
[Date "2024.01.02"]
[Round "4"]
[White "Khamdamova, Afruza"]
[Black "Chemin, Justo Reinaldo"]
[Result "1-0"]
[Board "206"]
[TimeControl "180+1"]
[WhiteFideId "14210444"]
[BlackFideId "2101580"]
[WhiteElo "2544"]
[BlackElo "2220"]
[WhiteTeam "UZB"]
[BlackTeam "BRA"]
[WhiteClock "0:00:20"]
[BlackClock "0:00:14"]

1. e4 {[%clk 0:02:47]}  e5 {[%clk 0:02:59]} 2. Nf3 {[%clk 0:02:46]}  Nc6 {[%clk 0:02:59]} 3. Bb5 {[%clk 0:02:46]}  a6 {[%clk 0:02:59]} 4. Ba4 {[%clk 0:02:46]}  Nf6 {[%clk 0:02:59]} 5. O-O {[%clk 0:02:46]}  Be7 {[%clk 0:02:59]} 6. Re1 {[%clk 0:02:46]}  b5 {[%clk 0:02:58]} 7. Bb3 {[%clk 0:02:46]}  O-O {[%clk 0:02:58]} 8. c3 {[%clk 0:02:46]}  d5 {[%clk 0:02:58]} 9. exd5 {[%clk 0:02:46]}  Nxd5 {[%clk 0:02:59]} 10. Nxe5 {[%clk 0:02:46]}  Nxe5 {[%clk 0:02:59]} 11. Rxe5 {[%clk 0:02:46]}  Nf6 {[%clk 0:03:00]} 12. d4 {[%clk 0:02:44]}  Bd6 {[%clk 0:03:00]} 13. Re1 {[%clk 0:02:43]}  Ng4 {[%clk 0:02:58]} 14. h3 {[%clk 0:02:40]}  Qh4 {[%clk 0:02:52]} 15. Qf3 {[%clk 0:02:39]}  Nxf2 {[%clk 0:02:50]} 16. Bd2 {[%clk 0:00:51]}  Nxh3+ {[%clk 0:01:55]} 17. gxh3 {[%clk 0:00:48]}  Bxh3 {[%clk 0:01:53]} 18. Re4 {[%clk 0:00:45]}  Bh2+ {[%clk 0:01:20]} 19. Kh1 {[%clk 0:00:33]}  Qd8 {[%clk 0:00:39]} 20. Qxh3 {[%clk 0:00:32]}  Bd6 {[%clk 0:00:39]} 21. Na3 {[%clk 0:00:24]}  Qf6 {[%clk 0:00:38]} 22. Rf1 {[%clk 0:00:23]}  Qg6 {[%clk 0:00:36]} 23. Rg4 {[%clk 0:00:21]}  Qd3 {[%clk 0:00:14]} 24. Qxd3 {[%clk 0:00:20]} 1-0

[Event "January 2 Early 2024"]
[Site "https://www.chess.com"]
[Date "2024.01.02"]
[Round "4"]
[White "Sidletskyi, Ivan"]
[Black "Gutierrez Carmona, Juan Alejandro"]
[Result "1-0"]
[Board "209"]
[TimeControl "180+1"]
[WhiteFideId "14156024"]
[BlackFideId "5106770"]
[WhiteElo "2474"]
[BlackElo "2195"]
[WhiteTeam "UKR"]
[BlackTeam "MEX"]
[WhiteClock "0:01:15"]
[BlackClock "0:00:03"]

1. Nc3 {[%clk 0:03:00]}  Nf6 {[%clk 0:02:56]} 2. Nf3 {[%clk 0:03:01]}  e6 {[%clk 0:02:56]} 3. e3 {[%clk 0:03:01]}  d5 {[%clk 0:02:56]} 4. d4 {[%clk 0:03:02]}  Bd6 {[%clk 0:02:53]} 5. Bd3 {[%clk 0:03:02]}  O-O {[%clk 0:02:51]} 6. O-O {[%clk 0:03:02]}  c5 {[%clk 0:02:49]} 7. dxc5 {[%clk 0:03:01]}  Bxc5 {[%clk 0:02:49]} 8. e4 {[%clk 0:03:01]}  dxe4 {[%clk 0:02:35]} 9. Nxe4 {[%clk 0:03:01]}  Be7 {[%clk 0:02:36]} 10. Bf4 {[%clk 0:02:57]}  Nd5 {[%clk 0:02:24]} 11. Bd2 {[%clk 0:02:39]}  Nc6 {[%clk 0:02:11]} 12. a3 {[%clk 0:02:38]}  e5 {[%clk 0:02:03]} 13. c4 {[%clk 0:02:33]}  Nf6 {[%clk 0:01:57]} 14. Nxf6+ {[%clk 0:02:25]}  Bxf6 {[%clk 0:01:56]} 15. Qc2 {[%clk 0:02:24]}  h6 {[%clk 0:01:48]} 16. Rad1 {[%clk 0:02:21]}  Bg4 {[%clk 0:01:47]} 17. Be4 {[%clk 0:02:13]}  Bxf3 {[%clk 0:01:44]} 18. Bxf3 {[%clk 0:02:13]}  Nd4 {[%clk 0:01:44]} 19. Qe4 {[%clk 0:02:11]}  Qc7 {[%clk 0:00:58]} 20. Bb4 {[%clk 0:01:34]}  Rfc8 {[%clk 0:00:26]} 21. Qxb7 {[%clk 0:01:28]}  Qxc4 {[%clk 0:00:21]} 22. Bd5 {[%clk 0:01:21]}  Qe2 {[%clk 0:00:10]} 23. Qxf7+ {[%clk 0:01:20]}  Kh8 {[%clk 0:00:10]} 24. Bxa8 {[%clk 0:01:19]}  Rxa8 {[%clk 0:00:10]} 25. Bc3 {[%clk 0:01:17]}  Qg4 {[%clk 0:00:09]} 26. Bxd4 {[%clk 0:01:16]}  exd4 {[%clk 0:00:10]} 27. Qd5 {[%clk 0:01:16]}  Rb8 {[%clk 0:00:09]} 28. b4 {[%clk 0:01:15]}  Qg6 {[%clk 0:00:08]} 29. Qf3 {[%clk 0:01:15]}  Rd8 {[%clk 0:00:07]} 30. Qd3 {[%clk 0:01:14]}  Qf7 {[%clk 0:00:08]} 31. Rde1 {[%clk 0:01:15]}  Qd5 {[%clk 0:00:08]} 32. Re4 {[%clk 0:01:15]}  Rd7 {[%clk 0:00:08]} 33. Rfe1 {[%clk 0:01:15]}  Rd8 {[%clk 0:00:03]} 34. Re8+ {[%clk 0:01:15]} 1-0

[Event "January 2 Early 2024"]
[Site "https://www.chess.com"]
[Date "2024.01.02"]
[Round "4"]
[White "Zhuk, Valeriy"]
[Black "Sailer, Mike"]
[Result "0-1"]
[Board "210"]
[TimeControl "180+1"]
[WhiteFideId "24151254"]
[BlackFideId "2012901"]
[WhiteElo "2412"]
[BlackElo "2180"]
[WhiteTeam "RUS"]
[BlackTeam "USA"]
[WhiteClock "0:00:00"]
[BlackClock "0:00:04"]

1. e4 {[%clk 0:02:58]}  d5 {[%clk 0:02:59]} 2. exd5 {[%clk 0:02:58]}  Qxd5 {[%clk 0:02:58]} 3. Nc3 {[%clk 0:02:56]}  Qd6 {[%clk 0:02:59]} 4. d4 {[%clk 0:02:56]}  c6 {[%clk 0:02:59]} 5. Nf3 {[%clk 0:02:55]}  Nf6 {[%clk 0:02:59]} 6. Ne5 {[%clk 0:02:55]}  Nbd7 {[%clk 0:02:57]} 7. Bf4 {[%clk 0:02:55]}  Nxe5 {[%clk 0:02:56]} 8. dxe5 {[%clk 0:02:54]}  Qxd1+ {[%clk 0:02:56]} 9. Rxd1 {[%clk 0:02:55]}  Nh5 {[%clk 0:02:39]} 10. Be3 {[%clk 0:02:54]}  g6 {[%clk 0:02:37]} 11. h3 {[%clk 0:02:46]}  Ng7 {[%clk 0:02:36]} 12. g4 {[%clk 0:02:40]}  h5 {[%clk 0:02:36]} 13. Rg1 {[%clk 0:02:39]}  hxg4 {[%clk 0:02:36]} 14. hxg4 {[%clk 0:02:40]}  Ne6 {[%clk 0:02:36]} 15. a4 {[%clk 0:02:17]}  Bg7 {[%clk 0:02:22]} 16. f4 {[%clk 0:02:16]}  Rh2 {[%clk 0:02:08]} 17. Rg2 {[%clk 0:02:03]}  Rxg2 {[%clk 0:02:07]} 18. Bxg2 {[%clk 0:02:04]}  g5 {[%clk 0:01:46]} 19. fxg5 {[%clk 0:01:30]}  Bxe5 {[%clk 0:01:45]} 20. a5 {[%clk 0:01:26]}  Bd7 {[%clk 0:01:38]} 21. a6 {[%clk 0:01:15]}  b6 {[%clk 0:01:38]} 22. Ne4 {[%clk 0:01:12]}  Rd8 {[%clk 0:01:29]} 23. c3 {[%clk 0:00:43]}  c5 {[%clk 0:01:26]} 24. Nd2 {[%clk 0:00:35]}  Nf4 {[%clk 0:01:14]} 25. Bxf4 {[%clk 0:00:27]}  Bxf4 {[%clk 0:01:14]} 26. Nc4 {[%clk 0:00:28]}  Bxg5 {[%clk 0:01:05]} 27. Nxb6 {[%clk 0:00:27]}  axb6 {[%clk 0:01:04]} 28. a7 {[%clk 0:00:26]}  Bh4+ {[%clk 0:00:55]} 29. Ke2 {[%clk 0:00:20]}  Bxg4+ {[%clk 0:00:54]} 30. Bf3 {[%clk 0:00:20]}  Bxf3+ {[%clk 0:00:51]} 31. Kxf3 {[%clk 0:00:21]}  Ra8 {[%clk 0:00:49]} 32. Rh1 {[%clk 0:00:21]}  Rxa7 {[%clk 0:00:43]} 33. Rxh4 {[%clk 0:00:20]}  e6 {[%clk 0:00:41]} 34. b4 {[%clk 0:00:17]}  Rc7 {[%clk 0:00:35]} 35. b5 {[%clk 0:00:09]}  Ke7 {[%clk 0:00:34]} 36. Ke4 {[%clk 0:00:08]}  Ra7 {[%clk 0:00:33]} 37. Rh8 {[%clk 0:00:06]}  Rb7 {[%clk 0:00:20]} 38. c4 {[%clk 0:00:06]}  Kd6 {[%clk 0:00:14]} 39. Rf8 {[%clk 0:00:06]}  f5+ {[%clk 0:00:14]} 40. Kf4 {[%clk 0:00:06]}  Ke7 {[%clk 0:00:14]} 41. Rc8 {[%clk 0:00:06]}  Kf6 {[%clk 0:00:13]} 42. Rc6 {[%clk 0:00:06]}  Rh7 {[%clk 0:00:07]} 43. Rxb6 {[%clk 0:00:06]}  Rh4+ {[%clk 0:00:08]} 44. Ke3 {[%clk 0:00:07]}  Rxc4 {[%clk 0:00:08]} 45. Rc6 {[%clk 0:00:08]}  Ke5 {[%clk 0:00:07]} 46. b6 {[%clk 0:00:08]}  Rc3+ {[%clk 0:00:07]} 47. Kd2 {[%clk 0:00:08]}  Rb3 {[%clk 0:00:07]} 48. Rxc5+ {[%clk 0:00:09]}  Ke4 {[%clk 0:00:07]} 49. Rc8 {[%clk 0:00:10]}  Rxb6 {[%clk 0:00:07]} 50. Re8 {[%clk 0:00:10]}  e5 {[%clk 0:00:07]} 51. Ke2 {[%clk 0:00:10]}  Rb2+ {[%clk 0:00:07]} 52. Kd1 {[%clk 0:00:10]}  f4 {[%clk 0:00:07]} 53. Kc1 {[%clk 0:00:10]}  Ra2 {[%clk 0:00:07]} 54. Kd1 {[%clk 0:00:10]}  f3 {[%clk 0:00:08]} 55. Ke1 {[%clk 0:00:11]}  Kf4 {[%clk 0:00:08]} 56. Rb8 {[%clk 0:00:09]}  e4 {[%clk 0:00:08]} 57. Kf1 {[%clk 0:00:08]}  Rd2 {[%clk 0:00:04]} 58. Ke1 {[%clk 0:00:06]}  Ke3 {[%clk 0:00:04]} 59. Rb3+ {[%clk 0:00:06]}  Rd3 {[%clk 0:00:05]} 60. Rb1 {[%clk 0:00:06]}  Rc3 {[%clk 0:00:04]} 61. Rd1 {[%clk 0:00:04]}  Kf4 {[%clk 0:00:04]} 62. Kf1 {[%clk 0:00:04]}  e3 {[%clk 0:00:04]} 63. Rd4+ {[%clk 0:00:00]}  Kg3 {[%clk 0:00:04]} 0-1

[Event "January 2 Early 2024"]
[Site "https://www.chess.com"]
[Date "2024.01.02"]
[Round "4"]
[White "Hoffmann, Asa"]
[Black "Tagliati, Eleonore"]
[Result "0-1"]
[Board "212"]
[TimeControl "180+1"]
[WhiteFideId "2001470"]
[BlackFideId "45172234"]
[WhiteElo "2366"]
[BlackElo "2162"]
[WhiteTeam "USA"]
[BlackTeam "FRA"]
[WhiteClock "0:01:01"]
[BlackClock "0:01:07"]

1. d4 {[%clk 0:03:00]}  d5 {[%clk 0:02:59]} 2. Bg5 {[%clk 0:02:59]}  Nf6 {[%clk 0:02:56]} 3. Nd2 {[%clk 0:02:58]}  Bf5 {[%clk 0:02:49]} 4. f3 {[%clk 0:02:58]}  Nbd7 {[%clk 0:02:48]} 5. c3 {[%clk 0:02:57]}  h6 {[%clk 0:02:46]} 6. Bh4 {[%clk 0:02:56]}  e6 {[%clk 0:02:45]} 7. e4 {[%clk 0:02:56]}  dxe4 {[%clk 0:02:28]} 8. fxe4 {[%clk 0:02:56]}  Bh7 {[%clk 0:02:28]} 9. e5 {[%clk 0:02:53]}  g5 {[%clk 0:02:28]} 10. Bg3 {[%clk 0:02:43]}  Ne4 {[%clk 0:02:24]} 11. Nxe4 {[%clk 0:02:41]}  Bxe4 {[%clk 0:02:25]} 12. Nf3 {[%clk 0:02:38]}  Be7 {[%clk 0:02:20]} 13. Bd3 {[%clk 0:02:34]}  Bxd3 {[%clk 0:02:14]} 14. Qxd3 {[%clk 0:02:34]}  Nb6 {[%clk 0:02:06]} 15. O-O-O {[%clk 0:02:33]}  Qd5 {[%clk 0:02:04]} 16. Kb1 {[%clk 0:02:30]}  O-O-O {[%clk 0:02:00]} 17. b3 {[%clk 0:02:24]}  h5 {[%clk 0:01:53]} 18. h4 {[%clk 0:02:22]}  g4 {[%clk 0:01:51]} 19. Nd2 {[%clk 0:02:21]}  Qxg2 {[%clk 0:01:50]} 20. Rhf1 {[%clk 0:02:02]}  Rhf8 {[%clk 0:01:39]} 21. Ne4 {[%clk 0:01:50]}  Nd5 {[%clk 0:01:25]} 22. Rf2 {[%clk 0:01:44]}  Qxe4 {[%clk 0:01:23]} 23. Kb2 {[%clk 0:01:24]}  Qxd3 {[%clk 0:01:21]} 24. Rxd3 {[%clk 0:01:23]}  f5 {[%clk 0:01:15]} 25. exf6 {[%clk 0:01:22]}  Rxf6 {[%clk 0:01:13]} 26. Re2 {[%clk 0:01:21]}  Nf4 {[%clk 0:01:10]} 27. Bxf4 {[%clk 0:01:20]}  Rxf4 {[%clk 0:01:11]} 28. Rxe6 {[%clk 0:01:19]}  Bxh4 {[%clk 0:01:12]} 29. Rh6 {[%clk 0:01:17]}  Rf5 {[%clk 0:01:09]} 30. c4 {[%clk 0:01:14]}  Bf2 {[%clk 0:01:09]} 31. d5 {[%clk 0:01:14]}  g3 {[%clk 0:01:08]} 32. Rg6 {[%clk 0:01:11]}  h4 {[%clk 0:01:08]} 33. Rf3 {[%clk 0:01:01]}  Rxf3 {[%clk 0:01:07]} 0-1

[Event "January 2 Early 2024"]
[Site "https://www.chess.com"]
[Date "2024.01.02"]
[Round "4"]
[White "Novak, Ratko"]
[Black "Petersson, Kjell"]
[Result "1-0"]
[Board "213"]
[TimeControl "180+1"]
[WhiteFideId "14511827"]
[BlackFideId "1705148"]
[WhiteElo "2364"]
[BlackElo "2152"]
[WhiteTeam "CRO"]
[BlackTeam "SWE"]
[WhiteClock "0:01:42"]
[BlackClock "0:00:01"]

1. d4 {[%clk 0:03:00]}  f5 {[%clk 0:02:59]} 2. c4 {[%clk 0:03:00]}  Nf6 {[%clk 0:02:59]} 3. Nc3 {[%clk 0:03:01]}  e6 {[%clk 0:03:00]} 4. f3 {[%clk 0:03:01]}  Bb4 {[%clk 0:03:00]} 5. Bg5 {[%clk 0:03:01]}  Bxc3+ {[%clk 0:02:59]} 6. bxc3 {[%clk 0:03:01]}  h6 {[%clk 0:02:53]} 7. Bh4 {[%clk 0:03:02]}  d6 {[%clk 0:02:30]} 8. e3 {[%clk 0:03:00]}  b6 {[%clk 0:02:21]} 9. Bd3 {[%clk 0:03:00]}  Bb7 {[%clk 0:02:17]} 10. d5 {[%clk 0:02:59]}  Qe7 {[%clk 0:02:11]} 11. Qc2 {[%clk 0:02:58]}  exd5 {[%clk 0:02:07]} 12. Bxf5 {[%clk 0:02:58]}  Qxe3+ {[%clk 0:02:06]} 13. Ne2 {[%clk 0:02:58]}  Nbd7 {[%clk 0:01:43]} 14. Bg6+ {[%clk 0:02:57]}  Kd8 {[%clk 0:01:33]} 15. Bf2 {[%clk 0:02:56]}  Qe7 {[%clk 0:01:29]} 16. O-O {[%clk 0:02:56]}  Ne5 {[%clk 0:01:27]} 17. Nd4 {[%clk 0:02:46]}  dxc4 {[%clk 0:01:16]} 18. Rfe1 {[%clk 0:02:45]}  c5 {[%clk 0:01:00]} 19. f4 {[%clk 0:02:13]}  cxd4 {[%clk 0:00:59]} 20. Bxd4 {[%clk 0:02:09]}  Qd7 {[%clk 0:00:46]} 21. fxe5 {[%clk 0:02:09]}  Ne8 {[%clk 0:00:30]} 22. Rad1 {[%clk 0:01:58]}  Qc6 {[%clk 0:00:25]} 23. exd6 {[%clk 0:01:53]}  Nxd6 {[%clk 0:00:25]} 24. Be5 {[%clk 0:01:52]}  Kc8 {[%clk 0:00:14]} 25. Rxd6 {[%clk 0:01:48]}  Qc5+ {[%clk 0:00:04]} 26. Kh1 {[%clk 0:01:46]}  Rd8 {[%clk 0:00:02]} 27. Bf5+ {[%clk 0:01:42]}  Kc7 {[%clk 0:00:01]} 1-0